bitfinex/quotes_BTCUSD_20260308
["timestamp","ask_amount","ask_price","bid_price","bid_amount"]
[1772965907329,0.07363763,68062.0,68056.0,0.005]
[1772965907486,0.07363763,68062.0,68050.0,0.17900191]
[1772965907690,0.09998351,68061.0,68047.0,0.0734783]
[1772965907896,0.09998351,68061.0,68043.0,0.00010557]
[1772965908316,0.08998351,68061.0,68043.0,0.00010557]
[1772965908544,0.09998351,68059.0,68043.0,0.00010557]
[1772965908754,0.09998351,68057.0,68035.0,0.00148]
[1772965908927,0.10010318,68057.0,68043.0,0.001]
[1772965909130,0.10010318,68057.0,68035.0,0.005]
[1772965909660,0.00148,68056.0,68039.0,0.005]
[1772965909827,0.00148,68056.0,68041.0,0.005]
[1772965910030,0.00148,68056.0,68043.0,0.005]
[1772965910202,0.00148,68056.0,68050.0,0.0004]
[1772965911143,0.00148,68055.0,68050.0,0.0004]
[1772965911346,0.00148,68055.0,68050.0,0.00051967]
[1772965913749,0.09998351,68053.0,68029.0,0.07349793]
[1772965913956,0.10010314,68053.0,68029.0,0.07349793]
[1772965914208,0.10010314,68053.0,68028.0,0.07867316]
[1772965914924,0.10010314,68053.0,68029.0,0.001]
[1772965915061,0.09998351,68051.0,68030.0,0.005]
[1772965915865,0.07347538,68050.0,68030.0,0.0784964]
[1772965916065,0.17345889,68050.0,68030.0,0.0734964]
[1772965916315,0.17345889,68050.0,68031.0,0.005]
[1772965916688,0.00148,68049.0,68031.0,0.005]
[1772965916938,0.00148,68048.0,68031.0,0.005]
[1772965917072,0.17345889,68050.0,68031.0,0.005]
[1772965917279,0.00148,68049.0,68031.0,0.005]
[1772965917471,0.00148,68048.0,68033.0,0.005]
[1772965917672,0.00148,68047.0,68033.0,0.005]
[1772965917933,0.07348078,68045.0,68035.0,0.005]
[1772965918337,0.00148,68044.0,68035.0,0.005]
[1772965918939,0.00148,68043.0,68035.0,0.005]
[1772965919361,0.07348078,68045.0,68035.0,0.005]
[1772965919562,0.00148,68042.0,68035.0,0.005]
[1772965919773,0.00148,68042.0,68036.0,0.005]
[1772965920314,0.0734851,68041.0,68037.0,0.005]
[1772965920442,0.07348388,68043.0,68038.0,0.005]
[1772965920443,0.04159882,68043.0,68038.0,0.005]
[1772965920637,0.00148,68045.0,68039.0,0.005]
[1772965921081,0.07347322,68052.0,68039.0,0.005]
[1772965921238,0.00148,68051.0,68039.0,0.005]
[1772965921439,0.09998351,68050.0,68028.0,0.07367337]
[1772965921640,0.09998351,68050.0,68029.0,0.07369788]
[1772965922406,0.09998351,68048.0,68029.0,0.07869788]
[1772965923581,0.09998351,68048.0,68029.0,0.0052]
[1772965923790,0.97917,68047.0,68025.0,0.0004]
[1772965923985,0.456892,68043.0,68025.0,0.0004]
[1772965924279,0.0734851,68041.0,68025.0,0.0004]
[1772965924474,0.16704593,68041.0,68025.0,0.0004]
[1772965925208,0.0004,68050.0,68026.0,0.09286919]
[1772965925446,0.00148,68049.0,68030.0,0.09138919]
[1772965925628,0.00148,68049.0,68034.0,0.09138919]
[1772965925809,0.07387546,68050.0,68026.0,0.00148]
[1772965925810,0.07387546,68050.0,68037.0,0.005]
[1772965925998,0.00148,68049.0,68039.0,0.005]
[1772965926467,0.00148,68048.0,68040.0,0.005]
[1772965926610,0.00148,68051.0,68042.0,0.09138919]
[1772965926813,0.07379723,68053.0,68045.0,0.005]
[1772965927054,0.00148,68052.0,68045.0,0.005]
[1772965927431,0.00148,68052.0,68046.0,0.005]
[1772965927632,0.07379723,68053.0,68046.0,0.005]
[1772965927844,0.00148,68052.0,68046.0,0.005]
[1772965928014,0.07346939,68056.0,68039.0,0.07348685]
[1772965928015,0.07346998,68055.0,68048.0,0.005]
[1772965928620,0.07346674,68058.0,68049.0,0.07347646]
[1772965928818,0.00148,68057.0,68050.0,0.005]
[1772965929250,0.00022001,68059.0,68051.0,0.09138919]
[1772965929448,0.00022001,68059.0,68052.0,0.005]
[1772965929735,0.07346674,68058.0,68052.0,0.005]
[1772965929953,0.07516598,68059.0,68052.0,0.005]
[1772965930792,0.00022001,68057.0,68053.0,0.005]
[1772965932284,0.00170001,68059.0,68053.0,0.005]
[1772965932809,0.07516576,68059.0,68052.0,0.07347314]
[1772965933202,0.07516576,68059.0,68052.0,0.07847314]
[1772965933407,0.00170001,68059.0,68052.0,0.07847314]
[1772965933853,0.0751659,68059.0,68052.0,0.07847314]
[1772965934256,0.00170001,68059.0,68052.0,0.07847314]
[1772965934657,0.07516583,68059.0,68053.0,0.07847117]
[1772965934954,0.07516583,68059.0,68053.0,0.0784721]
[1772965935612,0.00170001,68059.0,68053.0,0.0784721]
[1772965935767,0.075166,68059.0,68053.0,0.0784721]
[1772965935968,0.075166,68059.0,68053.0,0.078472]
[1772965936595,0.075166,68059.0,68051.0,0.0734743]
[1772965937925,0.075166,68059.0,68050.0,0.07347456]
[1772965938143,0.075166,68059.0,68051.0,0.00462807]
[1772965940153,0.075166,68059.0,68052.0,0.07347322]
[1772965940775,0.00148,68059.0,68052.0,0.07347322]
[1772965940979,0.00022001,68063.0,68055.0,0.005]
[1772965941189,0.00148,68060.0,68055.0,0.005]
[1772965941588,0.00022001,68068.0,68052.0,0.07347322]
[1772965941589,0.07366977,68074.0,68052.0,0.07347322]
[1772965941942,0.00148,68072.0,68061.0,0.09138919]
[1772965942067,0.00148,68072.0,68062.0,0.00483089]
[1772965942274,0.07493235,68072.0,68063.0,0.07829224]
[1772965943868,0.00022001,68066.0,68064.0,0.00483089]
[1772965944413,0.00022001,68066.0,68063.0,0.16485054]
[1772965944414,0.00022001,68066.0,68065.0,0.07829008]
[1772965944943,0.07345323,68071.0,68065.0,0.07829008]
[1772965945501,0.07493323,68071.0,68065.0,0.07829008]
[1772965946329,0.07345323,68071.0,68065.0,0.07345919]
[1772965946544,0.0003138,68073.0,68068.0,0.00483089]
[1772965946693,0.00148,68073.0,68068.0,0.09138919]
[1772965947068,0.00148,68073.0,68065.0,0.07345919]
[1772965947436,0.07493113,68073.0,68065.0,0.07829008]
[1772965947814,0.0059749,68078.0,68067.0,0.09138919]
[1772965948072,0.0059749,68078.0,68069.0,0.00483089]
[1772965948215,0.0794201,68078.0,68069.0,0.00492468]
[1772965948424,0.07942021,68078.0,68069.0,0.09148298]
[1772965948614,0.07942021,68078.0,68069.0,9.379e-05]
[1772965950702,0.07964022,68078.0,68069.0,9.379e-05]
[1772965951549,0.09356083,68077.0,68062.0,0.07346034]
[1772965951827,0.09368045,68077.0,68062.0,0.07346034]
[1772965952598,0.07344732,68076.0,68060.0,0.08158676]
[1772965955385,0.07344732,68076.0,68062.0,0.00812315]
[1772965955725,0.07344732,68076.0,68063.0,0.00812315]
[1772965956709,0.16084037,68076.0,68059.0,0.00812315]
[1772965958124,0.16084037,68076.0,68062.0,0.0002]
[1772965958670,0.16084037,68076.0,68059.0,0.00812315]
[1772965958871,0.08739305,68075.0,68059.0,0.00812315]
[1772965959444,0.08739305,68075.0,68059.0,0.08158867]
[1772965960901,0.07344948,68074.0,68059.0,0.07346552]
[1772965961219,0.00148,68073.0,68059.0,0.08158867]
[1772965962266,0.00148,68073.0,68059.0,0.00812315]
[1772965962564,0.00148,68073.0,68059.0,0.08158866]
[1772965963548,0.07345163,68072.0,68055.0,0.0002]
[1772965963783,0.08739305,68071.0,68055.0,0.07366991]
[1772965964216,0.08739305,68071.0,68055.0,0.08156183]
[1772965964418,0.08739305,68071.0,68055.0,0.0002]
[1772965966047,0.08739305,68071.0,68059.0,0.0002]
[1772965966048,0.16084684,68070.0,68059.0,0.0002]
[1772965966590,0.08739305,68069.0,68055.0,0.0002]
[1772965968082,0.07345595,68068.0,68055.0,0.0002]
[1772965968305,0.08739305,68066.0,68047.0,0.00789192]
[1772965968504,0.08739305,68066.0,68048.0,0.07367742]
[1772965970017,0.07345919,68065.0,68048.0,0.07367742]
[1772965970218,0.16085224,68065.0,68048.0,0.07367742]
[1772965971364,0.08739305,68064.0,68048.0,0.07367742]
[1772965972126,0.07346135,68063.0,68048.0,0.0002]
[1772965973171,0.08739305,68059.0,68039.0,0.00465832]
[1772965973375,0.00210807,68056.0,68039.0,0.00465832]
[1772965974285,0.07346998,68055.0,68040.0,0.00465832]
[1772965974514,0.07346998,68055.0,68041.0,0.0002]
[1772965974746,0.00210807,68054.0,68041.0,0.0002]
[1772965975851,0.06950095,68055.0,68041.0,0.0002]
[1772965976775,0.00148,68054.0,68041.0,0.0002]
[1772965977618,0.00148,68053.0,68041.0,0.0002]
[1772965978404,0.08739305,68051.0,68034.0,0.0002]
[1772965978595,0.08739305,68051.0,68034.0,0.00027033]
[1772965980503,0.08739305,68049.0,68034.0,0.00027033]
[1772965980991,0.07347538,68050.0,68035.0,0.00499999]
[1772965981189,0.01254755,68049.0,68034.0,0.08781831]
[1772965981603,0.01254755,68049.0,68034.0,0.00027033]
[1772965981777,0.01254755,68048.0,68034.0,0.00027033]
[1772965981980,0.01254755,68046.0,68034.0,0.00027033]
[1772965982392,0.07348078,68045.0,68034.0,0.00027033]
[1772965982596,0.01254755,68044.0,68034.0,0.00027033]
[1772965984559,0.07348294,68043.0,68034.0,0.00027033]
[1772965984766,0.01254755,68042.0,68034.0,0.00027033]
[1772965985061,0.01254755,68040.0,68034.0,0.00027033]
[1772965985265,0.01254755,68040.0,68028.0,0.0002]
[1772965985683,0.08150634,68039.0,68025.0,0.0004]
[1772965985883,0.00148,68041.0,68022.0,0.0004249]
[1772965985884,0.01254755,68037.0,68022.0,0.0004249]
[1772965986050,0.01254755,68036.0,68022.0,0.0004249]
[1772965986375,0.07348294,68043.0,68022.0,0.0003]
[1772965986376,0.08150634,68034.0,68022.0,0.0003]
[1772965986619,0.01254755,68031.0,68022.0,0.0003]
[1772965987213,0.01254755,68031.0,68020.0,0.0002]
[1772965987756,0.01254755,68031.0,68017.0,0.0002207]
[1772965988058,0.01254755,68030.0,68017.0,0.0002207]
[1772965988592,0.07349806,68029.0,68015.0,0.0002]
[1772965988804,0.08150634,68025.0,67999.0,0.07352941]
[1772965989009,0.01254755,68022.0,68001.0,0.08309981]
[1772965989212,0.01254755,68021.0,68001.0,0.08309981]
[1772965989658,0.00148,68024.0,68001.0,0.08309981]
[1772965989659,0.08150634,68020.0,68001.0,0.08309981]
[1772965989850,0.01254755,68019.0,68001.0,0.08309981]
[1772965990051,0.01254755,68017.0,68001.0,0.08309981]
[1772965991261,0.01254755,68015.0,68001.0,0.08309981]
[1772965991621,0.08150634,68014.0,67997.0,0.00575]
[1772965991824,0.01254755,68013.0,67997.0,0.00575]
[1772965992034,0.01254755,68011.0,67997.0,0.00575]
[1772965993279,0.0735186,68010.0,67997.0,0.00575]
[1772965993522,0.01254755,68009.0,67997.0,0.00575]
[1772965995192,0.01254755,68009.0,68000.0,0.0002]
[1772965995193,0.07352076,68008.0,68000.0,0.0002]
[1772965995435,0.01254755,68007.0,67997.0,0.00575]
[1772965995610,0.01254755,68005.0,67997.0,0.00575]
[1772965996001,0.01254755,68005.0,67993.0,0.0004207]
[1772965997818,0.07352508,68004.0,67993.0,0.0004207]
[1772965998000,0.01254755,68003.0,67993.0,0.0004207]
[1772965999069,0.01294603,68003.0,67993.0,0.0004207]
[1772965999977,0.08607479,68002.0,67993.0,0.0004207]
[1772966000654,0.01254755,68001.0,67993.0,0.0004207]
[1772966000856,0.00148,68000.0,67993.0,0.0004207]
[1772966001289,0.01254755,67999.0,67993.0,0.0004207]
[1772966002049,0.07353157,67998.0,67993.0,0.0004207]
[1772966002250,0.01254755,67997.0,67993.0,0.0004207]
[1772966002603,0.01254755,67997.0,67982.0,0.07354815]
[1772966002811,0.01254755,67997.0,67970.0,0.0147569]
[1772966002812,0.01254755,67995.0,67979.0,0.0002]
[1772966003015,0.01254755,67995.0,67979.0,0.07375188]
[1772966003610,0.01254755,67995.0,67979.0,0.0002]
[1772966003810,0.01254755,67994.0,67979.0,0.0002]
[1772966004061,0.07353698,67993.0,67979.0,0.0002]
[1772966004263,0.01254755,67992.0,67979.0,0.0002]
[1772966005396,0.01254755,67990.0,67979.0,0.0002]
[1772966006138,0.01254755,67990.0,67970.0,0.08831663]
[1772966006139,0.01254755,67988.0,67970.0,0.08831768]
[1772966006361,0.0735413,67989.0,67972.0,0.08309981]
[1772966006740,0.01254755,67988.0,67972.0,0.08309981]
[1772966008675,0.07354347,67987.0,67974.0,0.08309981]
[1772966008890,0.01254755,67986.0,67974.0,0.08309981]
[1772966009101,0.00148,67985.0,67974.0,0.08309981]
[1772966009311,0.00148,67985.0,67979.0,0.0002]
[1772966009690,0.00148,67985.0,67974.0,0.08309981]
[1772966009896,0.01402755,67985.0,67974.0,0.08309981]
[1772966010119,0.01402755,67985.0,67972.0,0.0002]
[1772966010292,0.07354347,67987.0,67973.0,0.07355861]
[1772966010633,0.07354563,67985.0,67976.0,0.08309981]
[1772966010984,0.07354563,67985.0,67972.0,0.0002]
[1772966011184,0.07354563,67985.0,67972.0,0.07375965]
[1772966011185,0.01254755,67984.0,67972.0,0.07375965]
[1772966011694,0.00148,67983.0,67972.0,0.07375965]
[1772966011894,0.07353993,67991.0,67973.0,0.08309981]
[1772966012445,0.00148,67990.0,67973.0,0.08309981]
[1772966012614,0.00148,67989.0,67974.0,0.07355753]
[1772966012953,0.00148,67989.0,67975.0,0.08240773]
[1772966013535,0.07353993,67991.0,67975.0,0.08240773]
[1772966013747,0.00148,67988.0,67975.0,0.08240773]
[1772966015103,0.07354347,67988.0,67976.0,0.07355537]
[1772966015323,0.00148,67987.0,67977.0,0.08240773]
[1772966015525,0.07354347,67988.0,67976.0,0.07355537]
[1772966015526,0.00148,67986.0,67976.0,0.07355537]
[1772966015775,0.00148,67986.0,67977.0,0.08240773]
[1772966017197,0.07354563,67985.0,67977.0,0.15596189]
[1772966017774,0.00148,67984.0,67978.0,0.08240773]
[1772966017997,0.00148,67984.0,67977.0,0.07355416]
[1772966018194,0.00148,67984.0,67973.0,0.08260773]
[1772966018398,0.01402755,67984.0,67973.0,0.08260773]
[1772966018543,0.01402755,67984.0,67973.0,0.0002]
[1772966019182,0.07354779,67983.0,67973.0,0.0002]
[1772966019385,0.00148,67982.0,67973.0,0.08260773]
[1772966019590,0.00148,67982.0,67970.0,0.07356155]
[1772966019964,0.00148,67982.0,67971.0,0.08240773]
[1772966020563,0.00187824,67982.0,67971.0,0.08240773]
[1772966021192,0.01442579,67982.0,67971.0,0.08240773]
[1772966021327,0.08609751,67981.0,67970.0,0.07356155]
[1772966021529,0.08609751,67981.0,67966.0,0.07376888]
[1772966021774,0.01254755,67980.0,67966.0,0.14733503]
[1772966023074,0.01254755,67980.0,67966.0,0.14733468]
[1772966023273,0.07355212,67979.0,67966.0,0.07376888]
[1772966023476,0.01254755,67978.0,67965.0,0.0002]
[1772966024069,0.07355212,67981.0,67966.0,0.08240773]
[1772966024269,0.07354888,67983.0,67965.0,0.07524712]
[1772966024471,0.07376073,67990.0,67965.0,0.07524712]
[1772966024472,0.07354888,67984.0,67966.0,0.08240773]
[1772966024672,0.00148,67983.0,67966.0,0.08240773]
[1772966025030,0.07354888,67984.0,67966.0,0.08240773]
[1772966025210,0.00148,67982.0,67966.0,0.08240773]
[1772966025420,0.00148,67982.0,67968.0,0.08240773]
[1772966025627,0.07354455,67986.0,67967.0,0.07356511]
[1772966025820,0.00148,67985.0,67968.0,0.07345368]
[1772966026938,0.19093908,68008.0,67967.0,0.07356511]
[1772966027080,0.07353582,67995.0,67968.0,0.07505757]
[1772966027402,0.07353582,67995.0,67969.0,0.07356294]
[1772966027630,0.00148,67994.0,67970.0,0.07505757]
[1772966027789,0.00148,67994.0,67972.0,0.07357757]
[1772966027992,0.00597001,67997.0,67972.0,0.07357757]
[1772966027993,0.00148,67995.0,67972.0,0.07357757]
[1772966028189,0.07950317,67997.0,67972.0,0.07357757]
[1772966028413,0.00148,67996.0,67972.0,0.07357757]
[1772966028826,0.00148,67995.0,67972.0,0.07357757]
[1772966029237,0.00148,67995.0,67971.0,0.00148]
[1772966029238,0.00148,67998.0,67971.0,0.00148]
[1772966029470,0.07501226,67998.0,67972.0,0.0735597]
[1772966029666,0.07353226,67998.0,67972.0,0.0735597]
[1772966029870,0.00148,67997.0,67973.0,0.00121199]
[1772966030071,0.00148,67997.0,67977.0,0.07]
[1772966030272,0.00148,67997.0,67979.0,0.00121199]
[1772966031373,0.07353373,67996.0,67980.0,0.07355104]
[1772966031578,0.07352616,68003.0,67980.0,0.07355104]
[1772966031773,0.00148,68001.0,67981.0,0.00316946]
[1772966033625,0.07352941,68000.0,67982.0,0.07354888]
[1772966033840,0.07352941,68000.0,67982.0,0.07502888]
[1772966033841,0.08994463,67998.0,67982.0,0.07502888]
[1772966034157,0.01254755,67997.0,67982.0,0.07354888]
[1772966034436,0.10249218,67995.0,67982.0,0.07354888]
[1772966034645,0.00148,67994.0,67982.0,0.07354888]
[1772966035738,0.07353698,67993.0,67979.0,0.07354888]
[1772966037932,0.08994463,68002.0,67979.0,0.07354888]
[1772966038130,0.00148,68001.0,67979.0,0.07354888]
[1772966038534,0.17623781,68004.0,67979.0,0.07354888]
[1772966038740,0.00148,68003.0,67979.0,0.07354888]
[1772966038977,0.00022001,67997.0,67979.0,0.07354888]
[1772966039175,0.00148,67996.0,67979.0,0.07354888]
[1772966039783,0.00148,67996.0,67986.0,0.07354455]
[1772966040970,0.00148,67996.0,67986.0,0.07362077]
[1772966041377,0.00022001,67997.0,67986.0,0.07362077]
[1772966041591,0.00148,67999.0,67986.0,0.07362077]
[1772966043940,0.00148,67999.0,67984.0,0.07354455]
[1772966043941,0.08166701,67998.0,67984.0,0.07354608]
[1772966044116,0.01254755,67994.0,67984.0,7.612e-05]
[1772966044318,0.00148,67993.0,67984.0,7.612e-05]
[1772966045951,0.081804,67993.0,67984.0,7.612e-05]
[1772966046144,0.08608669,67991.0,67984.0,7.612e-05]
[1772966047109,0.00148,67990.0,67984.0,7.612e-05]
[1772966049214,0.07502038,67990.0,67984.0,7.612e-05]
[1772966049539,80.0,68285.0,67984.0,7.612e-05]
[1772966049540,0.07353623,67994.0,67984.0,7.612e-05]
[1772966049749,0.00148,67993.0,67984.0,7.612e-05]
[1772966050094,0.07353623,67994.0,67984.0,7.612e-05]
[1772966050299,0.07501623,67994.0,67984.0,7.612e-05]
[1772966053229,0.00148,67994.0,67984.0,7.612e-05]
[1772966053709,0.07448203,67994.0,67984.0,0.00027612]
[1772966054852,0.00148,68004.0,67984.0,0.00027612]
[1772966055057,0.07373766,68011.0,67985.0,0.06809398]
[1772966055461,0.07351968,68009.0,67986.0,0.07354455]
[1772966055629,0.07499862,68010.0,67987.0,0.06787397]
[1772966055838,0.07499862,68010.0,67986.0,0.07354455]
[1772966055839,0.00148,68009.0,67989.0,0.06730895]
[1772966056216,0.07351862,68010.0,67989.0,0.06730895]
[1772966056380,0.00148,68008.0,67989.0,0.06730895]
[1772966057422,0.00148,68008.0,67990.0,0.07354022]
[1772966057635,0.00148,68008.0,67991.0,0.06668713]
[1772966059248,0.07351979,68009.0,67990.0,0.07354022]
[1772966059597,0.07373757,68011.0,67990.0,0.07354022]
[1772966059598,0.080324,68003.0,67990.0,0.07354022]
[1772966059744,0.080324,68001.0,67990.0,0.07354022]
[1772966059938,0.09435155,68001.0,67990.0,0.07354022]
[1772966061302,0.09435155,68001.0,67991.0,0.0002]
[1772966061893,0.16788035,68001.0,67991.0,0.0002]
[1772966062124,0.080324,68000.0,67991.0,0.0002]
[1772966062416,0.09287155,68000.0,67991.0,0.0002]
[1772966062788,0.08606939,68007.0,67991.0,0.0002]
[1772966063046,0.00148,68006.0,67991.0,0.0002]
[1772966063203,0.01254755,68007.0,67991.0,0.00168]
[1772966063403,0.08054401,68008.0,67991.0,0.00168]
[1772966063404,0.00148,68006.0,67991.0,0.06468154]
[1772966063621,0.00148,68007.0,67992.0,0.07353806]
[1772966063822,0.01254755,68005.0,67992.0,0.07353806]
[1772966064134,0.01254755,68001.0,67992.0,0.07353806]
[1772966064508,0.080324,68002.0,67992.0,0.07353806]
[1772966064914,0.01254755,68005.0,67992.0,0.07353806]
[1772966065115,0.080324,68006.0,67992.0,0.07353806]
[1772966065313,0.001773,68005.0,67992.0,0.07353806]
[1772966065517,0.000293,68005.0,67992.0,0.07353806]
[1772966065755,0.000293,68005.0,67998.0,0.07]
[1772966067371,0.00022001,68008.0,67998.0,0.07]
[1772966067732,0.00022001,68008.0,67999.0,0.07353049]
[1772966069507,0.09287155,68007.0,67999.0,0.07353049]
[1772966069738,0.09287155,68006.0,67999.0,0.07353049]
[1772966069933,0.00022001,68008.0,67999.0,0.07353049]
[1772966070349,0.00148,68010.0,67999.0,0.07353049]
[1772966070500,0.00022001,68011.0,67999.0,0.07353049]
[1772966070842,0.00170001,68011.0,67999.0,0.07353049]
[1772966071621,0.00022001,68011.0,67999.0,0.07353049]
[1772966073714,0.00627378,68009.0,67999.0,0.07353049]
[1772966073913,0.08448702,68006.0,67999.0,0.07353049]
[1772966074135,0.00627378,68005.0,67999.0,0.07353049]
[1772966075165,0.00627378,68010.0,67999.0,0.07353049]
[1772966075951,0.00148,68009.0,67999.0,0.07353049]
[1772966076360,0.00148,68009.0,67998.0,0.07353049]
[1772966076628,0.00170001,68012.0,67998.0,0.07353049]
[1772966079671,0.0907608,68011.0,67998.0,0.07353049]
[1772966079871,0.00627378,68010.0,67998.0,0.07353049]
[1772966080074,0.00170001,68012.0,67998.0,0.07353049]
[1772966080075,0.0907608,68009.0,67998.0,0.07353049]
[1772966080725,0.08448702,68007.0,67997.0,0.07353049]
[1772966080932,0.07351996,68009.0,67997.0,0.07353049]
[1772966080933,0.00627378,68004.0,67997.0,0.07353049]
[1772966083177,0.08448702,68005.0,67997.0,0.07353049]
[1772966086943,0.08448702,68005.0,67996.0,0.07353069]
[1772966088469,0.09176197,68008.0,67996.0,0.07353069]
[1772966089897,0.09176197,68008.0,67996.0,0.07501069]
[1772966090471,0.09176197,68008.0,67996.0,0.07521069]
[1772966090694,0.09176197,68008.0,67996.0,0.07373069]
[1772966090897,0.09176197,68008.0,67996.0,0.07521069]
[1772966091338,0.09176197,68008.0,67996.0,0.00168]
[1772966091517,0.09028197,68008.0,67996.0,0.00168]
[1772966091725,0.09176197,68008.0,67996.0,0.00168]
[1772966093231,0.09176197,68008.0,67997.0,0.07353265]
[1772966093624,0.09028197,68008.0,67997.0,0.07353265]
[1772966094690,0.08448702,68006.0,67997.0,0.07353265]
[1772966094916,0.08448702,68004.0,67997.0,0.07353265]
[1772966095135,0.08448702,68007.0,67997.0,0.07353265]
[1772966095340,0.00579495,68004.0,67997.0,0.07353265]
[1772966095552,0.08448702,68014.0,68000.0,0.00557798]
[1772966095676,0.08448702,68012.0,67997.0,0.29192671]
[1772966095877,0.08448702,68010.0,67998.0,0.00148]
[1772966096362,0.00579495,68009.0,67997.0,0.07501265]
[1772966096562,0.00575,68024.0,68004.0,0.00557798]
[1772966096720,0.00575,68024.0,68006.0,0.00557798]
[1772966097277,0.08470703,68023.0,68006.0,0.00557798]
[1772966097519,0.07349978,68028.0,68006.0,0.00557798]
[1772966097520,0.29377913,68053.0,68008.0,0.00557798]
[1772966097716,0.29377913,68053.0,68007.0,0.07352184]
[1772966097717,1e-08,68053.0,68026.0,0.21806383]
[1772966097836,1e-08,68053.0,68030.0,0.01461927]
[1772966097837,0.00039879,68053.0,68030.0,0.01461927]
[1772966098050,0.06203428,68069.0,68051.0,0.11625958]
[1772966098258,0.00011957,68069.0,68055.0,0.00557798]
[1772966098633,0.00011957,68069.0,68056.0,0.14532448]
[1772966098815,0.00011957,68069.0,68058.0,0.00557798]
[1772966099004,0.00011957,68069.0,68059.0,0.14532448]
[1772966099205,0.00011957,68069.0,68058.0,0.00557798]
[1772966099206,0.00011957,68069.0,68060.0,0.14532448]
[1772966099431,0.00011957,68069.0,68061.0,0.14532448]
[1772966099611,0.00011957,68069.0,68059.0,0.07346566]
[1772966099806,0.00011957,68069.0,68060.0,0.14447842]
[1772966100034,0.00011957,68069.0,68061.0,0.14447842]
[1772966100233,0.00011957,68069.0,68062.0,0.14447842]
[1772966100481,0.00011957,68069.0,68059.0,0.07904364]
[1772966100683,0.00011957,68069.0,68060.0,0.14445538]
[1772966100806,0.00011957,68069.0,68061.0,0.14445538]
[1772966101002,0.00011957,68069.0,68059.0,0.07904364]
[1772966101202,0.00011957,68069.0,68059.0,0.00557798]
[1772966101766,0.00011957,68069.0,68060.0,0.07346459]
[1772966102576,0.00011957,68069.0,68052.0,0.07347287]
[1772966102577,0.301092,68065.0,68044.0,0.07348118]
[1772966102805,0.08618683,68061.0,68039.0,0.00148]
[1772966102973,0.08618683,68056.0,68035.0,0.07349158]
[1772966103184,0.08618683,68052.0,68035.0,0.07349158]
[1772966103397,0.00579495,68049.0,68035.0,0.07349158]
[1772966103698,0.09198178,68047.0,68035.0,0.07349158]
[1772966103903,0.00579495,68046.0,68035.0,0.07349158]
[1772966104686,0.07347483,68051.0,68035.0,0.07349158]
[1772966104687,0.3979,68068.0,68036.0,0.00716066]
[1772966104895,0.08757985,68066.0,68040.0,0.00716066]
[1772966105089,0.0070897,68063.0,68042.0,0.00716066]
[1772966105285,0.08757985,68060.0,68050.0,0.0004]
[1772966105509,0.0070897,68058.0,68050.0,0.0004]
[1772966105705,0.09466955,68057.0,68050.0,0.0738743]
[1772966105917,0.09466955,68057.0,68043.0,0.07348195]
[1772966105918,0.08757985,68055.0,68042.0,0.07]
[1772966106067,0.07346813,68057.0,68043.0,0.07348186]
[1772966106264,0.0070897,68053.0,68043.0,0.07348186]
[1772966107720,0.0070897,68052.0,68042.0,0.07348294]
[1772966107917,0.0085697,68052.0,68042.0,0.07348294]
[1772966108746,0.00687748,68051.0,68041.0,0.07348294]
[1772966110207,0.07347538,68050.0,68040.0,0.07348618]
[1772966110369,0.00687748,68049.0,68040.0,0.07348618]
[1772966110571,0.00687748,68049.0,68038.0,0.07348618]
[1772966110767,0.08757985,68047.0,68033.0,0.07349266]
[1772966110992,0.00835748,68046.0,68033.0,0.07349266]
[1772966111769,0.07347538,68052.0,68033.0,0.07349266]
[1772966111770,0.07346289,68062.0,68034.0,0.08682882]
[1772966111971,0.00011955,68062.0,68037.0,0.07348942]
[1772966112174,0.00148,68061.0,68042.0,0.00722614]
[1772966112394,0.00011955,68062.0,68045.0,0.08682882]
[1772966112718,0.00011955,68062.0,68049.0,0.08682882]
[1772966112940,0.00011955,68062.0,68053.0,0.08682882]
[1772966113119,0.00011955,68062.0,68054.0,0.00722614]
[1772966113547,0.00022001,68056.0,68054.0,0.00722614]
[1772966113829,0.00011955,68062.0,68053.0,0.08682882]
[1772966114211,0.00011955,68062.0,68054.0,0.07347106]
[1772966114587,0.07368148,68063.0,68054.0,0.07347106]
[1772966114588,0.0170257,68063.0,68054.0,0.07347106]
[1772966114787,0.0170257,68063.0,68054.0,0.07359061]
[1772966115444,0.01588438,68062.0,68054.0,0.07359061]
[1772966116601,0.0090069,68062.0,68054.0,0.00011955]
[1772966117556,0.0090069,68062.0,68049.0,0.16030312]
[1772966117557,0.08757985,68060.0,68042.0,0.11625958]
[1772966117764,0.00687748,68058.0,68044.0,0.07348186]
[1772966117972,0.00687748,68058.0,68045.0,0.14393058]
[1772966118366,0.00687748,68055.0,68046.0,0.0734797]
[1772966118687,0.00687748,68055.0,68044.0,0.07496186]
[1772966118688,0.00687748,68055.0,68047.0,0.14393058]
[1772966118838,0.00687748,68053.0,68040.0,0.07348584]
[1772966119049,0.00687748,68051.0,68033.0,0.07349374]
[1772966119278,0.00687748,68049.0,68034.0,0.00148]
[1772966119484,0.00687748,68049.0,68033.0,0.07497374]
[1772966120622,0.00687748,68047.0,68033.0,0.07497374]
[1772966120805,0.00687748,68047.0,68035.0,0.0002]
[1772966121387,0.00687748,68046.0,68035.0,0.0002]
[1772966121606,0.00687748,68044.0,68033.0,0.07349266]
[1772966121806,0.00687748,68042.0,68033.0,0.07349266]
[1772966122229,0.00148,68045.0,68035.0,0.00722614]
[1772966122426,0.00148,68045.0,68036.0,0.09405496]
[1772966122707,0.00148,68045.0,68037.0,0.07348942]
[1772966123499,0.07347558,68050.0,68037.0,0.07348942]
[1772966123719,0.00148,68049.0,68037.0,0.07348942]
[1772966123931,0.00835748,68049.0,68037.0,0.07348942]
[1772966124329,0.00835748,68049.0,68034.0,0.07349158]
[1772966124532,0.00687748,68048.0,68034.0,0.07349158]
[1772966124739,0.00687748,68046.0,68034.0,0.07349158]
[1772966125489,0.00687748,68046.0,68034.0,0.18975116]
[1772966125699,0.00687748,68046.0,68028.0,0.17458937]
[1772966125700,0.08757985,68045.0,68030.0,0.07349595]
[1772966125876,0.00687748,68044.0,68031.0,0.16032439]
[1772966126077,0.00687748,68044.0,68031.0,0.08072171]
[1772966126280,0.00148,68043.0,68031.0,0.16755053]
[1772966126708,0.00148,68042.0,68031.0,0.16755053]
[1772966127134,0.07348433,68042.0,68031.0,0.16755053]
[1772966127342,0.07496433,68042.0,68031.0,0.16755053]
[1772966127550,0.07348433,68042.0,68031.0,0.16755053]
[1772966127686,0.08035992,68044.0,68031.0,0.08072171]
[1772966127887,0.00148,68043.0,68032.0,0.08682882]
[1772966128514,0.00148,68043.0,68034.0,0.0002]
[1772966128993,0.00148,68043.0,68031.0,0.07349571]